fUST/lending_fUST_20240114
["ID","MTS","AMOUNT","RATE_DAILY","PERIOD"]
[311529873,1705191040024,-925.73,0.00030136,2]
[311529874,1705191040034,-500.0,0.00030136,2]
[311529875,1705191040044,-740.5,0.00030136,2]
[311529876,1705191040054,-573.66885258,0.00030136,2]
[311529877,1705191040064,-500.0,0.00030136,2]
[311529878,1705191040073,-500.0,0.00030136,2]
[311529879,1705191040082,-500.0,0.00030136,2]
[311529880,1705191040092,-517.81583947,0.00030136,2]
[311529881,1705191040102,-500.0,0.00030136,2]
[311529882,1705191040111,-280.0039697,0.00030136,2]
[311529883,1705191040120,-500.0,0.00030136,2]
[311529884,1705191040129,-7573.12,0.00030136,2]
[311529885,1705191040138,-500.0,0.00030136,2]
[311529886,1705191040148,-500.0,0.00030136,2]
[311529887,1705191040157,-556.57930882,0.00030136,2]
[311529888,1705191040166,-500.0,0.00030136,2]
[311529889,1705191040176,-500.0,0.00030136,2]
[311529890,1705191040185,-500.0,0.00030136,2]
[311529891,1705191040195,-504.26236466,0.00030136,2]
[311529892,1705191040205,-500.0,0.00030136,2]
[311529893,1705191040215,-500.0,0.00030136,2]
[311529894,1705191040224,-500.0,0.00030136,2]
[311529895,1705191040235,-500.0,0.00030136,2]
[311529896,1705191040245,-153.5500288,0.00030137,2]
[311529897,1705191040254,-153.0,0.00030137,2]
[311529898,1705191040263,-153.0,0.00030137,2]
[311529899,1705191040273,-153.0,0.00030137,2]
[311529900,1705191040282,-153.0,0.00030137,2]
[311529901,1705191040291,-153.0,0.00030137,2]
[311529902,1705191040301,-153.0,0.00030137,2]
[311529903,1705191040310,-153.0,0.00030137,2]
[311529904,1705191040319,-153.0,0.00030137,2]
[311529905,1705191040329,-153.0,0.00030137,2]
[311529906,1705191040338,-153.0,0.00030137,2]
[311529907,1705191040348,-153.0,0.00030137,2]
[311529908,1705191040357,-153.0,0.00030137,2]
[311529909,1705191040367,-153.0,0.00030137,2]
[311529911,1705191040377,-153.0,0.00030137,2]
[311529913,1705191040499,-153.0,0.00030137,2]
[311529915,1705191040507,-153.0,0.00030137,2]
[311529917,1705191040516,-153.0,0.00030137,2]
[311529918,1705191040525,-153.0,0.00030137,2]
[311529919,1705191040535,-500.0,0.0003041,2]
[311529920,1705191040544,-500.0,0.0003041,2]
[311529921,1705191040553,-379.63044271,0.0003041,2]
[311529922,1705191040562,-500.0,0.0003041,2]
[311529923,1705191040572,-500.0,0.0003041,2]
[311529924,1705191040581,-500.0,0.0003041,2]
[311529925,1705191040590,-500.0,0.0003041,2]
[311529926,1705191040601,-500.0,0.0003041,2]
[311529928,1705191040614,-500.0,0.0003041,2]
[311529930,1705191040623,-500.0,0.0003041,2]
[311529932,1705191040632,-438.76690528,0.0003041,2]
[311529933,1705191040642,-500.0,0.0003041,2]
[311529934,1705191040650,-500.0,0.0003041,2]
[311529935,1705191040660,-500.0,0.0003041,2]
[311529937,1705191040669,-500.0,0.0003041,2]
[311529939,1705191040678,-500.0,0.0003041,2]
[311529940,1705191040686,-500.0,0.0003041,2]
[311529941,1705191040696,-500.0,0.0003041,2]
[311529942,1705191040705,-500.0,0.0003041,2]
[311529943,1705191040714,-500.0,0.0003041,2]
[311529944,1705191040724,-500.0,0.0003041,2]
[311529945,1705191040733,-500.0,0.0003041,2]
[311529946,1705191040743,-691.03,0.0003041,2]
[311529947,1705191040751,-1462.65,0.0003041,2]
[311529948,1705191040760,-420.14,0.0003041,2]
[311529949,1705191040770,-500.0,0.0003041,2]
[311529950,1705191040778,-500.0,0.0003041,2]
[311529952,1705191040787,-500.0,0.0003041,2]
[311529954,1705191040796,-500.0,0.0003041,2]
[311529955,1705191040806,-500.0,0.0003041,2]
[311529956,1705191040815,-558.94,0.0003041,2]
[311529957,1705191040823,-500.0,0.0003041,2]
[311529958,1705191040833,-500.0,0.0003041,2]
[311529959,1705191040842,-500.0,0.0003041,2]
[311529960,1705191040851,-500.0,0.0003041,2]
[311529961,1705191040861,-885.49,0.0003041,2]
[311529962,1705191040870,-644.44128891,0.0003041,2]
[311529963,1705191040880,-500.0,0.0003041,2]
[311529964,1705191040889,-4906.22,0.0003041,2]
[311529965,1705191040898,-500.0,0.0003041,2]
[311529966,1705191040908,-503.88246748,0.0003041,2]
[311529967,1705191040918,-500.0,0.0003041,2]
[311529968,1705191040929,-500.0,0.0003041,2]
[311529969,1705191040942,-510.97783528,0.0003041,2]
[311529970,1705191040954,-1981.47,0.0003041,2]
[311529971,1705191040965,-494.52868408,0.0003041,2]
[311529972,1705191040974,-645.17173758,0.0003041,2]
[311529973,1705191040984,-500.0,0.0003041,2]
[311529974,1705191040994,-500.0,0.0003041,2]
[311529975,1705191041003,-1444.26,0.0003041,2]
[311529976,1705191041012,-422.9162418,0.0003041,2]
[311529977,1705191041021,-925.73,0.0003041,2]
[311529978,1705191041030,-740.5,0.0003041,2]
[311529979,1705191041039,-500.0,0.0003041,2]
[311529980,1705191041048,-635.39888117,0.0003041,2]
[311529981,1705191041057,-500.0,0.0003041,2]
[311529982,1705191041066,-500.0,0.0003041,2]
[311529983,1705191041075,-7573.12,0.0003041,2]
[311529984,1705191041084,-500.0,0.0003041,2]
[311529985,1705191041093,-500.0,0.0003041,2]
[311529986,1705191041103,-500.0,0.0003041,2]
[311529987,1705191041113,-500.0,0.0003041,2]
[311529988,1705191041121,-500.0,0.0003041,2]
[311529989,1705191041130,-500.0,0.0003041,2]
[311529990,1705191041140,-502.60974127,0.0003041,2]
[311529991,1705191041149,-150.5,0.0003066,30]
[311529992,1705191041158,-1132.0,0.0003066,30]
[311529993,1705191041168,-1970.0,0.0003066,30]
[311529994,1705191041177,-150.5,0.0003067,30]
[311529995,1705191041186,-1132.0,0.0003067,30]
[311529996,1705191041195,-1970.0,0.0003067,30]
[311529997,1705191041204,-593.21905663,0.0003068,4]
[311529998,1705191041214,-150.5,0.0003068,30]
[311529999,1705191041223,-1132.0,0.0003068,30]
[311530000,1705191041233,-1970.0,0.0003068,30]
[311530001,1705191041243,-13879.66979621,0.00030681,4]
[311530002,1705191041252,-357.7096264,0.00030682,4]
[311530003,1705191041262,-309.89315267,0.00030682,4]
[311530004,1705191041270,-397.51985845,0.00030682,4]
[311530005,1705191041280,-282.75607304,0.00030682,3]
[311530006,1705191041289,-2234.2561325,0.00030682,4]
[311530007,1705191041299,-155.01240099,0.00030682,2]
[311530008,1705191041308,-311.75974656,0.00030683,2]
[311530009,1705191041318,-500.0,0.00030684,2]
[311530010,1705191041327,-500.0,0.00030684,2]
[311530011,1705191041336,-500.0,0.00030684,2]
[311530012,1705191041345,-500.0,0.00030684,2]
[311530013,1705191041355,-500.0,0.00030684,2]
[311530014,1705191041365,-500.0,0.00030684,2]
[311530015,1705191041374,-500.0,0.00030684,2]
[311530016,1705191041384,-500.0,0.00030684,2]
[311530017,1705191041393,-500.0,0.00030684,2]
[311530018,1705191041402,-560.27805403,0.00030684,2]
[311530019,1705191041411,-563.46,0.00030684,2]
[311530020,1705191041419,-500.0,0.00030684,2]
[311530021,1705191041428,-500.0,0.00030684,2]
[311530022,1705191041437,-500.0,0.00030684,2]
[311530023,1705191041446,-507.79952891,0.00030684,2]
[311530024,1705191041455,-612.0,0.00030684,2]
[311530025,1705191041465,-691.03,0.00030684,2]
[311530026,1705191041477,-1462.65,0.00030684,2]
[311530027,1705191041486,-500.0,0.00030684,2]
[311530028,1705191041495,-500.0,0.00030684,2]
[311530029,1705191041504,-500.0,0.00030684,2]
[311530030,1705191041513,-500.0,0.00030684,2]
[311530031,1705191041522,-500.0,0.00030684,2]
[311530032,1705191041531,-500.0,0.00030684,2]
[311530033,1705191041541,-500.0,0.00030684,2]
[311530034,1705191041550,-500.0,0.00030684,2]
[311530035,1705191041559,-885.49,0.00030684,2]
[311530036,1705191041568,-500.0,0.00030684,2]
[311530037,1705191041577,-4906.22,0.00030684,2]
[311530038,1705191041587,-500.0,0.00030684,2]
[311530039,1705191041596,-500.0,0.00030684,2]
[311530040,1705191041607,-500.0,0.00030684,2]
[311530041,1705191041617,-1981.47,0.00030684,2]
[311530042,1705191041626,-423.26840003,0.00030684,2]
[311530043,1705191041635,-500.0,0.00030684,2]
[311530044,1705191041645,-1444.26,0.00030684,2]
[311530045,1705191041654,-925.73,0.00030684,2]
[311530046,1705191041663,-740.5,0.00030684,2]
[311530047,1705191041672,-500.0,0.00030684,2]
[311530048,1705191041682,-500.0,0.00030684,2]
[311530049,1705191041692,-7573.12,0.00030684,2]
[311530050,1705191041702,-261.11985494,0.00030684,2]
[311530051,1705191041710,-500.0,0.00030684,2]
[311530052,1705191041720,-500.0,0.00030684,2]
[311530053,1705191041729,-500.0,0.00030684,2]
[311530054,1705191041738,-500.0,0.00030684,2]
[311530055,1705191041748,-150.5,0.00030928,30]
[311530056,1705191041757,-150.5,0.00030928,30]
[311530057,1705191041767,-150.5,0.00030928,30]
[311530058,1705191041776,-150.5,0.00030938,30]
[311530059,1705191041785,-150.5,0.00030938,30]
[311530060,1705191041794,-150.5,0.00030938,30]
[311530061,1705191041803,-150.5,0.00030948,30]
[311530062,1705191041813,-150.5,0.00030948,30]
[311530063,1705191041823,-150.5,0.00030948,30]
[311530064,1705191041833,-3509.64011659,0.00030957,2]
[311530065,1705191041842,-1000.0,0.00030957,14]
[311530066,1705191041851,-1000.0,0.00030957,14]
[311530067,1705191041860,-1000.0,0.00030957,14]
[311530068,1705191041869,-863.63067649,0.00030957,14]
[311530069,1705191041878,-500.0,0.00030958,2]
[311530070,1705191041888,-500.0,0.00030958,2]
[311530071,1705191041898,-500.0,0.00030958,2]
[311530072,1705191041907,-277.69274946,0.00030958,2]
[311530073,1705191041917,-500.0,0.00030958,2]
[311530074,1705191041926,-500.0,0.00030958,2]
[311530075,1705191041935,-500.0,0.00030958,2]
[311530076,1705191041944,-500.0,0.00030958,2]
[311530077,1705191041953,-500.0,0.00030958,2]
[311530078,1705191041962,-500.0,0.00030958,2]
[311530079,1705191041972,-500.0,0.00030958,2]
[311530080,1705191041984,-500.0,0.00030958,2]
[311530081,1705191041995,-691.03,0.00030958,2]
[311530082,1705191042004,-1462.65,0.00030958,2]
[311530083,1705191042015,-500.0,0.00030958,2]
[311530084,1705191042026,-500.0,0.00030958,2]
[311530085,1705191042035,-500.0,0.00030958,2]
[311530086,1705191042045,-500.0,0.00030958,2]
[311530087,1705191042054,-500.0,0.00030958,2]
[311530088,1705191042064,-500.0,0.00030958,2]
[311530089,1705191042073,-500.0,0.00030958,2]
[311530090,1705191042082,-885.49,0.00030958,2]
[311530091,1705191042091,-500.0,0.00030958,2]
[311530092,1705191042100,-4906.22,0.00030958,2]
[311530093,1705191042110,-500.0,0.00030958,2]
[311530094,1705191042119,-500.0,0.00030958,2]
[311530095,1705191042129,-500.0,0.00030958,2]
[311530096,1705191042138,-1981.47,0.00030958,2]
[311530097,1705191042147,-500.0,0.00030958,2]
[311530098,1705191042156,-1444.26,0.00030958,2]
[311530099,1705191042166,-925.73,0.00030958,2]
[311530100,1705191042176,-740.5,0.00030958,2]
[311530101,1705191042184,-500.0,0.00030958,2]
[311530102,1705191042194,-500.0,0.00030958,2]
[311530103,1705191042203,-7573.12,0.00030958,2]
[311530104,1705191042213,-500.0,0.00030958,2]
[311530105,1705191042222,-500.0,0.00030958,2]
[311530106,1705191042231,-500.0,0.00030958,2]
[311530107,1705191042240,-500.0,0.00030999,4]
[311530108,1705191042249,-500.0,0.00030999,4]
[311530109,1705191042258,-460.97413529,0.00030999,4]
[311530110,1705191042267,-189.77631231,0.00030999,4]
[311530111,1705191042277,-434.75290552,0.00030999,4]
[311530112,1705191042286,-333.54796943,0.00030999,4]
[311530113,1705191042295,-96900.86075861,0.00031,4]
[311530114,1705191042304,-300.0,0.00031,15]
[311530115,1705191042313,-500.0,0.00031232,2]
[311530116,1705191042322,-619.31,0.00031232,2]
[311530117,1705191042331,-500.0,0.00031232,2]
[311530118,1705191042339,-500.0,0.00031232,2]
[311530119,1705191042348,-500.0,0.00031232,2]
[311530120,1705191042357,-500.0,0.00031232,2]
[311530121,1705191042366,-500.0,0.00031232,2]
[311530122,1705191042375,-500.0,0.00031232,2]
[311530123,1705191042384,-500.0,0.00031232,2]
[311530124,1705191042393,-500.0,0.00031232,2]
[311530125,1705191042402,-500.0,0.00031232,2]
[311530126,1705191042411,-2374.25273543,0.00031232,2]
[311530127,1705191042421,-2374.25273543,0.00031232,2]
[311530128,1705191042430,-2374.25273543,0.00031232,2]
[311530129,1705191042439,-2374.25273543,0.00031232,2]
[311530130,1705191042448,-2374.25273543,0.00031232,2]
[311530131,1705191042457,-2374.25273543,0.00031232,2]
[311530132,1705191042467,-2374.25273543,0.00031232,2]
[311530133,1705191042476,-2374.25273543,0.00031232,2]
[311530134,1705191042486,-2374.25273543,0.00031232,2]
[311530135,1705191042496,-2374.25273543,0.00031232,2]
[311530136,1705191042505,-691.03,0.00031232,2]
[311530137,1705191042514,-1462.65,0.00031232,2]
[311530138,1705191042523,-500.0,0.00031232,2]
[311530139,1705191042533,-500.0,0.00031232,2]
[311530140,1705191042542,-500.0,0.00031232,2]
[311530141,1705191042551,-500.0,0.00031232,2]
[311530142,1705191042560,-500.0,0.00031232,2]
[311530143,1705191042569,-500.0,0.00031232,2]
[311530144,1705191042579,-885.49,0.00031232,2]
[311530145,1705191042588,-500.0,0.00031232,2]
[311530146,1705191042601,-4906.22,0.00031232,2]
[311530147,1705191042611,-500.0,0.00031232,2]
[311530148,1705191042621,-500.0,0.00031232,2]
[311530149,1705191042630,-500.0,0.00031232,2]
[311530150,1705191042640,-1981.47,0.00031232,2]
[311530151,1705191042649,-500.0,0.00031232,2]
[311530152,1705191042658,-1444.26,0.00031232,2]
[311530153,1705191042668,-925.73,0.00031232,2]
[311530154,1705191042678,-740.5,0.00031232,2]
[311530155,1705191042688,-500.0,0.00031232,2]
[311530156,1705191042697,-500.0,0.00031232,2]
[311530157,1705191042707,-7573.12,0.00031232,2]
[311530158,1705191042716,-500.0,0.00031232,2]
[311530159,1705191042725,-500.0,0.00031232,2]
[311530160,1705191042736,-500.0,0.00031232,2]
[311530161,1705191042745,-581.09815568,0.00031506,2]
[311530162,1705191042755,-500.0,0.00031506,2]
[311530163,1705191042764,-496.57,0.00031506,2]
[311530164,1705191042773,-500.0,0.00031506,2]
[311530165,1705191042782,-500.0,0.00031506,2]
[311530166,1705191042791,-500.0,0.00031506,2]
[311530167,1705191042801,-500.0,0.00031506,2]
[311530168,1705191042811,-500.0,0.00031506,2]
[311530169,1705191042820,-500.0,0.00031506,2]
[311530170,1705191042830,-500.0,0.00031506,2]
[311530171,1705191042840,-691.03,0.00031506,2]
[311530172,1705191042849,-1462.65,0.00031506,2]
[311530173,1705191042858,-500.0,0.00031506,2]
[311530174,1705191042868,-500.0,0.00031506,2]
[311530176,1705191042877,-500.0,0.00031506,2]
[311530177,1705191042886,-500.0,0.00031506,2]
[311530178,1705191042896,-500.0,0.00031506,2]
[311530179,1705191042905,-500.0,0.00031506,2]
[311530180,1705191042914,-885.49,0.00031506,2]
[311530181,1705191042924,-500.0,0.00031506,2]
[311530190,1705191043019,-4906.22,0.00031506,2]
[311530192,1705191043029,-500.0,0.00031506,2]
[311530194,1705191043038,-500.0,0.00031506,2]
[311530196,1705191043048,-518.48,0.00031506,2]
[311530198,1705191043057,-1981.47,0.00031506,2]
[311530200,1705191043066,-505.81,0.00031506,2]
[311530201,1705191043075,-1444.26,0.00031506,2]
[311530202,1705191043085,-925.73,0.00031506,2]
[311530203,1705191043095,-740.5,0.00031506,2]
[311530204,1705191043105,-500.0,0.00031506,2]
[311530205,1705191043115,-500.0,0.00031506,2]
[311530206,1705191043124,-7573.12,0.00031506,2]
[311530207,1705191043133,-500.0,0.00031506,2]
[311530208,1705191043142,-320.14,0.00031506,2]
[311530209,1705191043151,-500.0,0.00031506,2]
[311530210,1705191043161,-500.0,0.0003178,2]
[311530211,1705191043170,-500.0,0.0003178,2]
[311530212,1705191043180,-586.62,0.0003178,2]
[311530214,1705191043189,-500.0,0.0003178,2]
[311530215,1705191043198,-500.0,0.0003178,2]
[311530216,1705191043208,-363.01444271,0.0003178,2]
[311530217,1705191043217,-214.58,0.0003178,2]
[311530218,1705191043228,-691.03,0.0003178,2]
[311530219,1705191043237,-1462.65,0.0003178,2]
[311530220,1705191043246,-500.0,0.0003178,2]
[311530221,1705191043256,-500.0,0.0003178,2]
[311530222,1705191043265,-500.0,0.0003178,2]
[311530223,1705191043274,-500.0,0.0003178,2]
[311530224,1705191043283,-500.0,0.0003178,2]
[311530225,1705191043293,-885.49,0.0003178,2]
[311530227,1705191043302,-503.57169132,0.0003178,2]
[311530228,1705191043311,-4906.22,0.0003178,2]
[311530229,1705191043320,-500.0,0.0003178,2]
[311530230,1705191043329,-500.0,0.0003178,2]
[311530231,1705191043338,-1981.47,0.0003178,2]
[311530232,1705191043347,-1444.26,0.0003178,2]
[311530233,1705191043356,-925.73,0.0003178,2]
[311530234,1705191043365,-740.5,0.0003178,2]
[311530235,1705191043375,-500.0,0.0003178,2]
[311530236,1705191043384,-7573.12,0.0003178,2]
[311530237,1705191043393,-500.0,0.0003178,2]
[311530238,1705191043402,-500.0,0.0003178,2]
[311530239,1705191043412,-153.71,0.00031999,2]
[311530240,1705191043421,-318344.47559965,0.00032,15]
[311530241,1705191043430,-163.75350737,0.00032,30]
[311530242,1705191043439,-200.0,0.00032,4]
[311530243,1705191043448,-500.0,0.00032,3]
[311530244,1705191043458,-620.00167945,0.0003201,2]
[311530245,1705191043467,-50000.0,0.00032038,7]
[311530246,1705191043476,-500.0,0.00032054,2]
[311530247,1705191043487,-691.03,0.00032054,2]
[311530248,1705191043496,-1462.65,0.00032054,2]
[311530249,1705191043506,-500.0,0.00032054,2]
[311530250,1705191043516,-571.78,0.00032054,2]
[311530251,1705191043525,-500.0,0.00032054,2]
[311530252,1705191043534,-885.49,0.00032054,2]
[311530253,1705191043543,-4906.22,0.00032054,2]
[311530254,1705191043553,-500.0,0.00032054,2]
[311530255,1705191043562,-500.0,0.00032054,2]
[311530256,1705191043572,-1981.47,0.00032054,2]
[311530257,1705191043581,-1444.26,0.00032054,2]
[311530258,1705191043590,-925.73,0.00032054,2]
[311530259,1705191043604,-740.5,0.00032054,2]
[311530260,1705191043614,-500.0,0.00032054,2]
[311530261,1705191043624,-7573.12,0.00032054,2]
[311530262,1705191043634,-500.0,0.00032054,2]
[311530263,1705191043644,-500.0,0.00032054,2]
[311530264,1705191043653,-20010.2571951,0.00032186,2]
[311530265,1705191043662,-500.0,0.00032328,2]
[311530266,1705191043672,-691.03,0.00032328,2]
[311530267,1705191043682,-1462.65,0.00032328,2]
[311530268,1705191043692,-500.0,0.00032328,2]
[311530269,1705191043702,-500.0,0.00032328,2]
[311530270,1705191043711,-885.49,0.00032328,2]
[311530271,1705191043720,-4906.22,0.00032328,2]
[311530272,1705191043731,-501.33,0.00032328,2]
[311530273,1705191043740,-500.0,0.00032328,2]
[311530274,1705191043749,-1981.47,0.00032328,2]
[311530275,1705191043758,-1444.26,0.00032328,2]
[311530276,1705191043768,-925.73,0.00032328,2]
[311530277,1705191043777,-740.5,0.00032328,2]
[311530278,1705191043789,-500.0,0.00032328,2]
[311530279,1705191043800,-7573.12,0.00032328,2]
[311530280,1705191043810,-552.44,0.00032328,2]
[311530281,1705191043819,-179.646151,0.00032499,2]
[311530282,1705191043828,-252.817295,0.00032499,2]
[311530283,1705191043838,-349.65237,0.00032499,2]
[311530284,1705191043847,-570.126855,0.00032499,2]
[311530285,1705191043856,-285.063428,0.00032499,2]
[311530286,1705191043865,-174.826185,0.00032499,2]
[311530287,1705191043875,-4459.69276809,0.000325,20]
[311530288,1705191043884,-300.0,0.000325,16]
[311530289,1705191043893,-35635.71705217,0.00032502,3]
[311530290,1705191043903,-219.339978,0.00032602,2]
[311530291,1705191043912,-219.339978,0.00032602,2]
[311530292,1705191043921,-500.0,0.00032602,2]
[311530293,1705191043930,-691.03,0.00032602,2]
[311530294,1705191043939,-1462.65,0.00032602,2]
[311530295,1705191043948,-500.0,0.00032602,2]
[311530296,1705191043957,-500.0,0.00032602,2]
[311530297,1705191043966,-885.49,0.00032602,2]
[311530298,1705191043975,-4906.22,0.00032602,2]
[311530299,1705191043987,-500.0,0.00032602,2]
[311530300,1705191043996,-1981.47,0.00032602,2]
[311530301,1705191044006,-1444.26,0.00032602,2]
[311530302,1705191044015,-925.73,0.00032602,2]
[311530303,1705191044025,-740.5,0.00032602,2]
[311530304,1705191044034,-500.0,0.00032602,2]
[311530305,1705191044043,-7573.12,0.00032602,2]
[311530306,1705191044052,-151.0,0.0003279,2]
[311530307,1705191044061,-1500.0,0.000328,2]
[311530308,1705191044071,-1450.43,0.00032876,4]
[311530309,1705191044079,-176.58,0.00032876,7]
[311530310,1705191044089,-500.0,0.00032876,2]
[311530311,1705191044099,-186.3226738,0.00032876,7]
[311530312,1705191044108,-197.5603437,0.00032876,7]
[311530313,1705191044116,-517.33223423,0.00032876,7]
[311530314,1705191044127,-625.16097707,0.00032876,7]
[311530315,1705191044136,-250.0,0.00032876,10]
[311530316,1705191044145,-691.03,0.00032876,2]
[311530317,1705191044154,-1462.65,0.00032876,2]
[311530318,1705191044163,-500.0,0.00032876,2]
[311530319,1705191044173,-500.0,0.00032876,2]
[311530320,1705191044183,-885.49,0.00032876,2]
[311530321,1705191044192,-4906.22,0.00032876,2]
[311530322,1705191044201,-500.0,0.00032876,2]
[311530323,1705191044211,-1981.47,0.00032876,2]
[311530324,1705191044220,-1444.26,0.00032876,2]
[311530325,1705191044230,-925.73,0.00032876,2]
[311530326,1705191044241,-740.5,0.00032876,2]
[311530327,1705191044251,-500.0,0.00032876,2]
[311530328,1705191044260,-7573.12,0.00032876,2]
[311530329,1705191044270,-155.0,0.000329,2]
[311530330,1705191044279,-252.817295,0.00032905,2]
[311530331,1705191044290,-349.65237,0.00032905,2]
[311530332,1705191044300,-570.126855,0.00032905,2]
[311530333,1705191044309,-285.063428,0.00032905,2]
[311530334,1705191044319,-174.826185,0.00032905,2]
[311530335,1705191044328,-4924.00010427,0.00033,4]
[311530336,1705191044337,-155.01240099,0.00033,4]
[311530337,1705191044346,-2023.96709915,0.00033,2]
[311530338,1705191044355,-218.8784498,0.00033,3]
[311530339,1705191044364,-63156.61018685,0.00033,2]
[311530340,1705191044374,-151.0,0.00033,2]
[311530341,1705191044383,-151.0,0.00033,2]
[311530342,1705191044392,-500.0,0.00033,3]
[311530343,1705191044402,-179.646151,0.00033041,2]
[311530344,1705191044411,-1450.43,0.0003315,4]
[311530345,1705191044420,-500.0,0.0003315,2]
[311530346,1705191044429,-691.03,0.0003315,2]
[311530347,1705191044438,-1462.65,0.0003315,2]
[311530348,1705191044447,-500.0,0.0003315,2]
[311530349,1705191044456,-200.58818176,0.0003315,2]
[311530350,1705191044466,-885.49,0.0003315,2]
[311530351,1705191044475,-4906.22,0.0003315,2]
[311530352,1705191044485,-500.0,0.0003315,2]
[311530353,1705191044495,-47.70683748,0.0003315,2]
[311530354,1705191044554,-958.3301076,0.0003315,2]
[311530355,1705191044616,-975.43305492,0.0003315,2]
[311530356,1705191044626,-1444.26,0.0003315,2]
[311530357,1705191044634,-925.73,0.0003315,2]
[311530358,1705191044645,-740.5,0.0003315,2]
[311530359,1705191044655,-500.0,0.0003315,2]
[311530360,1705191044664,-4590.03997452,0.0003315,2]
[311530361,1705191044676,-2177.20779055,0.0003315,2]
[311530516,1705192232649,-686.84015754,0.00025163,2]
[311530518,1705192232659,-155.00155002,0.00025164,4]
[311530520,1705192232668,-155.00155002,0.00025164,2]
[311530522,1705192232677,-260.28590703,0.00025164,7]
[311530524,1705192232687,-875.01165605,0.00025165,2]
[311530526,1705192232697,-1578.80571108,0.00025166,2]
[311530592,1705192238721,-615.80248759,0.00025162,2]
[311530594,1705192238731,-648.02652915,0.00025165,2]
[311530601,1705192238786,-18226.48045345,0.00025165,2]
[311530603,1705192238796,-81086.75247006,0.00025165,2]
[311530605,1705192238806,-13618.47546094,0.00025166,2]
[311530607,1705192238816,-1442.44,0.00025167,3]
[311530609,1705192238825,-2038.88,0.00025167,3]
[311530610,1705192238835,-1699.06,0.00025167,3]
[311530611,1705192238844,-329.01472352,0.00025174,2]
[311530612,1705192238854,-469.87027249,0.00025175,2]
[311530613,1705192238863,-2709.7496128,0.00025176,2]
[311530614,1705192238872,-24900.0,0.0002518,2]
[311530615,1705192238882,-155.00310006,0.00026215,2]
[311530616,1705192238892,-155.00310006,0.00026215,2]
[311530617,1705192238901,-495.667286,0.00026226,2]
[311530618,1705192238911,-155.00310006,0.00027249,2]
[311530619,1705192238921,-406.42553996,0.00027251,20]
[311530620,1705192238931,-1703.29655313,0.00028276,2]
[311530621,1705192238941,-397.51985845,0.00028292,2]
[311530622,1705192238950,-309.89315267,0.00028293,2]
[311530623,1705192238964,-357.7096264,0.00028293,2]
[311530624,1705192238974,-24500.0,0.00028298,3]
[311530625,1705192238984,-5475.74948755,0.00028298,2]
[311530626,1705192238993,-16669.98928447,0.00028298,2]
[311530627,1705192239003,-3437.23153638,0.00028305,3]
[311530628,1705192239013,-200.0,0.00028798,15]
[311530629,1705192239023,-152.64236015,0.00028965,2]
[311530630,1705192239032,-700.0,0.0002935,2]
[311530631,1705192239042,-358.29397093,0.0002935,2]
[311530632,1705192239051,-507.04658453,0.0002979,3]
[311530633,1705192239061,-13879.66979621,0.00029817,2]
[311530634,1705192239072,-12062.37290036,0.00029948,2]